bitfinex-derivatives/quotes_ETHF0:USTF0_20260221
["timestamp","ask_amount","ask_price","bid_price","bid_amount"]
[1771634659330,6.58923767,1964.3,1963.6,0.54475674]
[1771634659532,0.57522054,1964.4,1963.6,0.54475674]
[1771634659730,0.4985836,1964.3,1963.6,0.54475674]
[1771634659931,0.57522054,1964.4,1963.6,0.54475674]
[1771634660132,0.49858374,1964.3,1963.6,0.54475674]
[1771634660332,0.57522054,1964.4,1963.6,0.54475674]
[1771634660532,0.49854982,1964.3,1963.6,0.54475674]
[1771634660733,0.57522054,1964.4,1963.6,0.54475674]
[1771634660933,0.4985499,1964.3,1963.6,0.54475674]
[1771634661134,0.57522054,1964.4,1963.6,0.54475674]
[1771634661434,0.56910318,1964.2,1963.6,0.54475674]
[1771634661833,0.56910318,1964.3,1963.6,0.54475674]
[1771634666141,0.57522054,1964.4,1963.6,0.54475674]
[1771634676339,0.56910318,1964.2,1963.5,0.00363673]
[1771634676540,0.56910318,1963.9,1962.7,0.54475674]
[1771634676948,0.56910318,1963.9,1962.8,0.54475674]
[1771634677447,0.56910318,1963.9,1962.8,0.54954147]
[1771634677644,0.56910318,1963.9,1963.1,0.55570619]
[1771634678952,1.66601387,1964.4,1963.1,0.55570619]
[1771634678953,0.56482808,1964.3,1963.1,0.55570619]
[1771634679150,0.56482808,1964.1,1963.1,0.55570619]
[1771634689861,0.56482808,1964.0,1963.2,0.55570619]
[1771634693763,0.56482808,1964.0,1963.0,0.55570619]
[1771634693964,0.56482808,1963.5,1963.0,0.55570619]
[1771634694966,0.56482808,1963.8,1963.0,0.55570619]
[1771634697363,0.56482808,1963.8,1963.2,0.55570619]
[1771634697568,0.56482808,1963.8,1962.8,0.00478473]
[1771634697569,0.56482808,1964.2,1963.4,0.55570619]
[1771634698669,2.22538406,1963.9,1963.2,0.55570619]
[1771634698870,0.56482808,1963.8,1963.2,0.55570619]
[1771634700869,0.56482808,1963.9,1963.3,0.55570619]
[1771634702971,0.56482808,1963.9,1963.5,0.55570619]
[1771634703270,0.56482808,1964.0,1963.5,0.55570619]
[1771634703572,0.00611736,1964.4,1963.5,0.55570619]
[1771634703773,0.56482808,1964.2,1963.5,0.55570619]
[1771634705171,0.56482808,1964.0,1963.5,0.55570619]
[1771634711980,0.58725081,1964.2,1963.6,1.66055598]
[1771634712178,0.58725081,1964.2,1963.7,0.58912478]
[1771634712375,0.59336817,1964.4,1963.9,0.58912478]
[1771634712580,1.08144208,1964.3,1963.9,0.58912478]
[1771634712778,0.58725081,1964.3,1963.9,0.58912478]
[1771634716879,0.58725081,1964.3,1963.6,1.66055598]
[1771634717084,0.58725081,1964.2,1963.5,0.58912478]
[1771634717283,0.58725081,1964.1,1963.5,0.58912478]
[1771634729392,0.58725081,1964.1,1963.4,1.66055598]
[1771634729598,0.58725081,1964.0,1963.3,0.58912478]
[1771634729799,0.58725081,1964.0,1963.4,0.58912478]
[1771634730300,0.58725081,1964.2,1963.6,0.58912478]
[1771634734206,0.58725081,1964.3,1963.6,0.58912478]
[1771634738822,0.58475568,1964.0,1963.2,0.56554168]
[1771634747414,0.58475568,1963.8,1963.2,0.56554168]
[1771634750616,0.58475568,1963.8,1963.1,0.56554168]
[1771634752209,0.58475568,1963.8,1962.9,0.56554168]
[1771634752415,0.58475568,1963.6,1962.8,0.57032641]
[1771634753117,0.58475568,1963.4,1962.8,0.57032641]
[1771634754612,0.58475568,1963.4,1962.8,0.00478473]
[1771634756220,0.58475568,1963.4,1962.8,0.57032641]
[1771634757717,0.58475568,1963.4,1962.8,0.00478473]
[1771634757917,0.58475568,1963.4,1962.8,0.57032641]
[1771634761321,0.2547,1963.9,1962.8,0.57032641]
[1771634761322,0.58475568,1963.8,1962.8,0.57032641]
[1771634761619,0.58475568,1963.6,1962.8,0.57032641]
[1771634764722,0.58475568,1963.6,1962.9,0.56554168]
[1771634765019,0.58475568,1964.3,1962.9,0.56554168]
[1771634765216,0.58475568,1964.1,1962.9,0.56554168]
[1771634765412,0.58475568,1963.9,1962.9,0.56554168]
[1771634772224,0.57000782,1963.7,1962.9,0.56554168]
[1771634783924,0.57000782,1963.5,1962.8,0.00478473]
[1771634784131,0.57000782,1963.5,1962.8,0.56684644]
[1771634786533,0.57000782,1963.3,1962.8,0.56684644]
[1771634786932,0.57000782,1963.3,1962.3,0.56206171]
[1771634786933,0.48377706,1963.2,1962.3,0.56206171]
[1771634787230,1.91559744,1963.5,1962.3,0.56206171]
[1771634787231,0.57000782,1963.0,1962.3,0.56206171]
[1771634787933,0.57560132,1963.0,1962.3,0.56659382]
[1771634789135,0.57560132,1963.0,1962.3,0.00453211]
[1771634790436,0.57000782,1962.3,1961.3,0.56206171]
[1771634790837,0.57000782,1962.4,1961.5,0.56206171]
[1771634791531,0.57000782,1962.9,1961.5,0.56797248]
[1771634791736,0.57000782,1962.7,1961.8,0.56206171]
[1771634797140,0.57000782,1962.7,1961.8,0.56206171]
[1771634812053,0.57000782,1962.7,1962.0,0.59489252]
[1771634817750,0.58214622,1963.0,1962.4,0.59489252]
[1771634817953,0.0055935,1963.0,1962.6,0.59489252]
[1771634818349,0.57655272,1963.3,1962.6,0.59489252]
[1771634818653,0.57655272,1963.2,1962.4,0.59489252]
[1771634818845,0.57655272,1963.2,1962.6,0.59489252]
[1771634819051,0.57655272,1963.2,1962.8,0.59489252]
[1771634819347,0.5808732,1963.2,1962.8,0.59489252]
[1771634822747,0.57655272,1963.6,1962.9,0.59489252]
[1771634822955,0.57655272,1963.5,1962.7,0.59489252]
[1771634823851,0.58065403,1963.5,1962.7,0.59931643]
[1771634839871,0.58766332,1963.3,1962.7,0.59931643]
[1771634848576,0.58766332,1963.4,1962.7,0.59931643]
[1771634848872,0.58766332,1963.0,1962.4,0.56893072]
[1771634849870,0.58766332,1963.0,1962.4,0.57401971]
[1771634850772,0.58766332,1963.0,1962.4,0.00508899]
[1771634851973,0.58766332,1963.0,1962.4,0.57401971]
[1771634858378,0.00410131,1963.5,1962.4,0.57401971]
[1771634858379,0.55636253,1963.2,1962.4,0.57401971]
[1771634858975,0.55636253,1963.4,1962.6,0.56164729]
[1771634862083,0.55636253,1963.2,1962.6,0.56164729]
[1771634870490,0.55636253,1963.0,1962.6,0.56164729]
[1771634884791,0.55636253,1963.0,1962.4,0.56673628]
[1771634887789,0.55636253,1963.0,1962.4,0.00508899]
[1771634888488,0.56945372,1962.8,1962.1,0.59464497]
[1771634889496,0.56945372,1962.8,1962.1,0.59939075]
[1771634893992,0.56945372,1963.1,1962.1,0.59939075]
[1771634894194,6.68450103,1963.0,1962.1,0.59939075]
[1771634894391,0.56945372,1963.1,1962.1,0.59939075]
[1771634894587,0.56945372,1962.9,1962.1,0.59939075]
[1771634897895,0.56945372,1963.3,1962.1,0.59939075]
[1771634907401,0.56945372,1963.3,1962.2,0.25491]
[1771634907604,0.56945372,1963.4,1962.4,0.59464497]
[1771634910203,0.56945372,1963.4,1962.7,0.59464497]
[1771634911412,0.00410131,1963.5,1962.7,0.59464497]
[1771634914810,0.57355503,1963.5,1962.7,0.59464497]
[1771634919218,0.57355503,1963.5,1962.2,0.59970122]
[1771634921819,0.57355503,1963.5,1962.5,0.59970122]
[1771634926423,0.55908887,1963.3,1962.5,0.59970122]
[1771634927518,0.55908887,1963.4,1962.5,0.59970122]
[1771634933931,0.55908887,1963.4,1962.6,0.59970122]
[1771634937127,0.56319018,1963.5,1963.0,0.59970122]
[1771634939031,0.00410131,1963.5,1963.0,0.59970122]
[1771634939331,0.00410131,1963.5,1963.1,0.59970122]
[1771634939633,0.55908887,1963.6,1963.1,0.59970122]
[1771634940533,0.56322051,1963.6,1963.1,0.59970122]
[1771634940730,0.00413164,1963.6,1963.1,0.59970122]
[1771634941037,0.55908887,1963.8,1963.3,0.59970122]
[1771634941334,0.55908887,1963.9,1963.3,0.59970122]
[1771634941935,0.55908887,1964.3,1963.5,0.59970122]
[1771634942134,0.55908887,1964.1,1963.5,0.59970122]
[1771634943026,0.00542439,1964.1,1963.5,0.60450358]
[1771634943232,0.56451326,1964.1,1963.7,0.59970122]
[1771634943529,0.31252417,1964.3,1963.7,0.59970122]
[1771634944432,0.31771474,1964.3,1963.7,0.59970122]
[1771634945137,0.00519057,1964.3,1963.7,0.59970122]
[1771634945535,0.31968507,1964.1,1963.5,0.60450358]
[1771634945736,0.31968507,1963.9,1963.5,0.60450358]
[1771634949443,0.31968507,1963.9,1963.5,0.00480236]
[1771634952541,0.31968507,1963.9,1963.5,0.58788958]
[1771634955846,0.30232746,1964.2,1963.5,0.58788958]
[1771634964752,1.95691412,1964.3,1963.5,0.58788958]
[1771634965160,0.29032407,1964.2,1963.5,0.58788958]
[1771634968560,1.95471607,1964.3,1963.5,0.58788958]
[1771634968862,0.29331659,1964.3,1963.5,0.58788958]
[1771634970161,0.00519057,1964.3,1963.7,0.58308722]
[1771634972567,0.00519057,1964.3,1963.9,0.58308722]
[1771634972858,0.2931059,1964.5,1963.9,0.58308722]
[1771634973064,0.2931059,1964.7,1963.9,0.58308722]
[1771634973764,0.29701684,1964.7,1963.9,0.58308722]
[1771634975267,0.29029236,1964.5,1964.0,0.58308722]
[1771634978468,1.66139948,1964.6,1964.0,0.58308722]
[1771634978668,1.94561524,1964.6,1964.0,0.58308722]
[1771634978967,0.28421576,1964.6,1964.0,0.58308722]
[1771634990966,0.2806676,1964.7,1964.0,0.58308722]
[1771634991472,0.00391094,1964.7,1964.0,0.58308722]
[1771634998876,0.27190112,1965.0,1964.1,0.59638181]
[1771634999275,0.27190111,1965.2,1964.1,0.59638181]
[1771634999877,0.27831018,1965.2,1964.1,0.59638181]
[1771635000074,0.2719011,1965.0,1964.1,0.59638181]
[1771635000377,0.27162188,1964.8,1964.1,0.59638181]
[1771635000977,0.47991606,1964.7,1963.6,0.59638181]
[1771635001178,0.27162188,1964.6,1963.6,0.59638181]
[1771635001976,0.27162187,1964.4,1963.6,0.59638181]
[1771635007180,0.25451949,1964.2,1963.5,0.00480236]
[1771635008286,0.25451949,1964.2,1963.5,0.56179996]
[1771635029102,0.47895076,1964.1,1963.5,0.56179996]
[1771635029305,0.23581869,1964.1,1963.5,0.56179996]
[1771635034902,0.23590346,1963.9,1962.8,0.25483]
[1771635035108,0.23590346,1963.9,1962.9,0.5569976]
[1771635035399,0.55735016,1963.7,1962.9,0.5569976]
[1771635036008,0.56102494,1963.7,1962.9,0.56271565]
[1771635043715,0.00367478,1963.7,1962.9,0.56271565]
[1771635048619,4.84979063,1964.2,1963.0,0.25481]
[1771635048820,6.6220354,1964.1,1963.2,0.57023348]
[1771635049016,0.59544184,1964.2,1963.2,0.57023348]
[1771635049216,6.6226989,1964.1,1963.2,0.57023348]
[1771635049417,0.59544184,1964.2,1963.2,0.57023348]
[1771635049717,7.21800889,1964.1,1963.2,0.57023348]
[1771635049917,0.59544184,1964.1,1963.2,0.57023348]
[1771635053121,0.59544184,1963.9,1963.2,0.57023348]
[1771635056125,0.59544184,1963.7,1963.2,0.57023348]
[1771635062526,0.59544184,1963.6,1963.0,0.57023348]
[1771635119880,0.58992103,1963.8,1963.0,0.57023348]
[1771635120185,0.48055316,1963.7,1963.0,0.57023348]
[1771635120382,0.58992103,1963.8,1963.0,0.57023348]
[1771635120583,0.48054293,1963.7,1963.0,0.57023348]
[1771635120886,0.58992103,1963.8,1963.0,0.57023348]
[1771635121080,0.48054309,1963.7,1963.0,0.57023348]
[1771635121280,0.58992103,1963.8,1963.0,0.57023348]
[1771635121477,0.58992103,1964.1,1963.2,0.59539743]
[1771635121677,0.58992103,1963.9,1963.2,0.59539743]
[1771635130099,0.57842845,1964.1,1963.2,0.59539743]
[1771635132700,0.57842845,1963.9,1963.2,0.59539743]
[1771635139411,0.00594369,1964.2,1963.2,0.59539743]
[1771635139607,0.57842845,1964.0,1963.2,0.59539743]
[1771635146311,0.57842845,1963.8,1963.2,0.59539743]
[1771635166329,0.59963864,1963.6,1963.0,0.59751242]
[1771635170634,0.59963864,1963.7,1963.0,0.59751242]
[1771635171831,0.59963864,1963.8,1963.0,0.59751242]
[1771635179940,0.59963864,1963.8,1963.1,0.59751242]
[1771635180342,0.59963864,1963.8,1963.3,0.59751242]
[1771635197554,0.59963864,1963.8,1963.1,0.58120637]
[1771635199558,1.05139189,1963.7,1963.1,0.58120637]
[1771635199758,0.57073757,1963.7,1963.1,0.58120637]
[1771635228872,0.57685383,1963.5,1963.0,0.54612134]
[1771635229173,0.57685383,1963.5,1962.9,0.55183939]
[1771635235276,0.57685383,1963.3,1962.9,0.00571805]
[1771635240177,0.57685383,1963.1,1962.4,0.54612134]
[1771635240585,0.57685383,1962.9,1962.2,0.54612134]
[1771635241080,0.57685383,1962.9,1962.2,0.55249938]
[1771635241974,0.57685383,1962.7,1962.0,0.54612134]
[1771635242673,0.57685383,1962.7,1961.6,0.54612134]
[1771635243074,0.58231712,1962.7,1961.6,0.55203081]
[1771635251492,0.58231712,1962.7,1961.9,0.56014262]
[1771635266199,0.60065485,1962.5,1961.9,0.56014262]
[1771635267197,0.60611814,1962.7,1961.9,0.56014262]
[1771635272603,0.00546329,1962.7,1961.9,0.56014262]
[1771635272896,0.60611814,1962.7,1961.9,0.56014262]
[1771635273700,0.00546329,1962.7,1961.9,0.56014262]
[1771635274201,0.58531814,1962.8,1961.9,0.56014262]
[1771635275303,0.5905196,1962.8,1961.9,0.56014262]
[1771635277005,0.00520146,1962.8,1962.1,0.56014262]
[1771635277908,0.60303426,1962.7,1962.1,0.56014262]
[1771635279112,0.60823572,1962.8,1962.1,0.56014262]
[1771635286314,1e-08,1962.8,1962.4,0.60012187]
[1771635286520,0.60303426,1962.9,1961.9,0.60012187]
[1771635287017,0.60303426,1962.7,1961.9,0.60012187]
[1771635287417,0.60868935,1962.7,1961.9,0.60012187]
[1771635288823,0.60868935,1962.7,1962.1,0.60012187]
[1771635289416,0.00565509,1962.7,1962.1,0.60012187]
[1771635296626,0.60303426,1963.0,1962.1,0.60012187]
[1771635297528,0.60303426,1962.8,1962.1,0.60012187]
[1771635298217,0.60303426,1962.6,1962.1,0.60012187]
[1771635298821,0.60736395,1963.0,1962.3,0.60012187]
[1771635299022,0.00432969,1963.0,1962.3,0.60012187]
[1771635300326,0.60736395,1963.0,1962.3,0.60012187]
[1771635301629,0.00432969,1963.0,1962.3,0.60012187]
[1771635301929,2.26943419,1963.0,1962.3,0.60012187]
[1771635302229,0.60303426,1962.9,1962.3,0.60012187]
[1771635306932,0.60303426,1962.9,1962.1,0.60012187]
[1771635308031,0.60303426,1962.9,1962.3,0.54718825]
[1771635319545,0.00432969,1963.0,1962.5,0.54718825]
[1771635321948,0.55127458,1963.0,1962.5,0.54718825]
[1771635323548,0.55127458,1963.0,1962.3,0.54718825]
[1771635332647,0.54694489,1962.9,1962.3,0.54718825]
[1771635333955,0.54694489,1962.9,1962.1,0.54718825]
[1771635334154,0.54694489,1962.7,1962.1,0.54718825]
[1771635336456,0.54694489,1962.7,1962.0,0.54718825]
[1771635337158,0.54694489,1962.5,1962.0,0.54718825]
[1771635339553,0.54694489,1962.5,1961.7,0.5609725]
[1771635339759,0.5749091,1962.3,1961.7,0.5609725]
[1771635345060,0.5749091,1962.3,1961.6,0.56688197]
[1771635346260,0.5749091,1962.1,1961.6,0.56688197]
[1771635349370,0.5749091,1962.1,1961.6,0.00590947]
[1771635349866,0.5749091,1962.1,1961.6,0.56688197]
[1771635350061,0.5749091,1962.1,1961.6,0.00590947]
[1771635350267,0.5749091,1961.9,1961.6,0.00590947]
[1771635350568,0.5749091,1961.9,1961.4,0.5609725]
[1771635351166,0.5749091,1961.9,1961.2,0.5609725]
[1771635351364,0.5749091,1961.7,1961.2,0.56483933]
[1771635353665,0.5749091,1961.7,1961.2,0.00386683]
[1771635354170,0.5749091,1961.7,1961.2,0.56483933]
[1771635358473,0.5749091,1961.9,1961.2,0.56483933]
[1771635359476,0.5749091,1962.1,1961.4,0.5609725]
[1771635360774,0.5749091,1962.1,1961.6,0.5609725]
[1771635362776,0.5749091,1962.3,1961.6,0.5609725]
[1771635364278,0.5749091,1962.8,1961.6,0.5609725]
[1771635364472,0.5749091,1962.6,1961.6,0.5609725]
[1771635367076,0.5749091,1962.6,1961.7,0.5609725]
[1771635393194,0.57574192,1962.4,1961.7,0.5609725]
[1771635394102,0.57574192,1962.8,1961.7,0.5609725]
[1771635394400,0.57574192,1962.6,1961.7,0.5609725]
[1771635395105,0.47950261,1962.5,1961.7,0.5609725]
[1771635395404,0.57574192,1962.5,1961.7,0.5609725]
[1771635402709,0.57075709,1962.7,1961.9,0.57077404]
[1771635404909,0.00432969,1963.0,1961.9,0.57077404]
[1771635405209,0.57075709,1962.8,1961.9,0.57077404]
[1771635405410,0.57075709,1962.9,1962.0,0.57077404]
[1771635417509,0.57508678,1963.0,1962.2,0.57077404]
[1771635417713,0.57508678,1963.0,1962.3,0.57077404]
[1771635428733,0.56690991,1962.9,1962.3,0.57077404]
[1771635436442,0.56690991,1962.9,1962.1,0.85895516]
[1771635436838,0.56690991,1962.9,1962.2,0.60402516]
[1771635462258,0.56565057,1963.0,1962.5,0.56482764]
[1771635463560,0.56132088,1962.8,1962.3,0.56482764]
[1771635465655,0.56132088,1962.6,1962.3,0.56482764]
[1771635468254,0.56565057,1963.0,1962.3,0.56482764]
[1771635478563,0.00432969,1963.0,1962.3,0.56482764]
[1771635478766,0.56132088,1962.9,1962.3,0.56482764]
[1771635479466,0.00432969,1963.0,1962.3,0.56482764]
[1771635479868,0.56565057,1963.0,1962.3,0.56482764]
[1771635481869,0.00432969,1963.0,1962.3,2.22676694]
[1771635482071,0.00432969,1963.0,1962.4,0.56482764]
[1771635482874,0.56565057,1963.0,1962.4,0.56482764]
[1771635483175,0.00432969,1963.0,1962.4,0.56482764]
[1771635489275,2.62005116,1963.5,1962.4,0.56482764]
[1771635489479,0.60281912,1963.3,1962.4,0.56482764]
[1771635489780,1.08230089,1963.2,1962.4,0.56482764]
[1771635489979,0.60281912,1963.2,1962.4,0.56482764]
[1771635490279,0.60772921,1963.2,1962.4,0.56482764]
[1771635513902,0.00491009,1963.2,1962.4,0.56482764]
[1771635515404,0.60772921,1963.2,1962.4,0.56482764]
[1771635526219,0.00491009,1963.2,1962.4,0.56482764]
[1771635531516,0.59357993,1963.2,1962.4,0.56482764]
[1771635531820,0.00491009,1963.2,1962.6,0.55244639]
[1771635532020,0.58866984,1963.4,1962.8,0.55244639]
[1771635532922,0.59398008,1963.4,1962.8,0.55244639]
[1771635587472,0.59398008,1963.4,1962.6,0.00448913]
[1771635587671,0.59398008,1963.4,1962.6,0.57531305]
[1771635587874,0.59398008,1963.4,1962.7,0.57082392]
[1771635598578,0.59398008,1963.4,1962.6,1.66554105]
[1771635598579,0.59398008,1963.4,1962.9,0.57082392]
[1771635600283,0.60048648,1963.5,1962.9,0.57082392]
[1771635600481,0.28014055,1963.9,1963.2,0.57082392]
[1771635600782,0.28014055,1963.7,1963.2,0.57082392]
[1771635601482,1.66037277,1964.2,1963.2,0.57082392]
[1771635601684,6.47437728,1964.1,1963.2,0.57082392]
[1771635601883,0.48006798,1964.0,1963.2,0.57082392]
[1771635602082,1.66037277,1964.2,1963.2,0.57082392]
[1771635602285,6.47301132,1964.1,1963.2,0.57082392]
[1771635602583,0.00253642,1963.9,1963.2,0.57082392]
[1771635606087,0.00253642,1963.9,1963.0,0.60073452]
[1771635606891,0.00788366,1963.7,1963.0,0.60073452]
[1771635621799,0.00788366,1963.7,1963.1,0.60200269]
[1771635625304,0.00736771,1964.1,1963.1,0.60200269]
[1771635625506,0.00736771,1963.9,1963.1,0.60200269]
[1771635628309,0.00736771,1963.9,1963.1,8.60935709]
[1771635628504,0.00736771,1963.9,1963.2,0.60093973]
[1771635630611,0.0074175,1964.1,1963.2,2.26173386]
[1771635630806,0.00620108,1964.2,1963.4,8.60830206]
[1771635631005,0.00620108,1964.2,1963.5,0.60094766]
[1771635631408,0.01361858,1964.2,1963.5,0.60094766]
[1771635633116,0.00620108,1964.2,1963.6,0.59323072]
[1771635633312,0.10634573,1964.4,1963.6,0.59323072]
[1771635633614,0.10634573,1964.4,1963.7,0.59323072]
[1771635634315,0.00556419,1964.4,1963.7,0.59323072]
[1771635635616,0.12609602,1964.8,1963.9,0.59323072]
[1771635636216,0.13166021,1965.0,1963.9,0.59323072]
[1771635636622,0.1375976,1965.0,1963.9,0.59323072]
[1771635660134,0.1375976,1965.0,1964.0,0.59011403]
[1771635660434,0.1375976,1965.0,1964.0,0.59445414]
[1771635661333,0.12860245,1964.8,1964.0,0.59445414]
[1771635668434,0.12515459,1964.5,1963.8,0.59294819]
[1771635669739,0.12515459,1964.5,1963.8,0.59731218]
[1771635669934,0.12311051,1964.3,1963.8,0.59731218]
[1771635670238,0.12311051,1964.1,1963.8,0.59731218]
[1771635670441,0.12311051,1964.1,1963.7,0.59294819]
[1771635671335,0.12311051,1964.1,1963.7,0.59837559]
[1771635675443,1.65989069,1964.2,1963.7,0.59837559]
[1771635678744,1.65989069,1964.4,1963.7,0.59837559]
[1771635679645,1.65989069,1964.2,1963.7,0.0054274]
[1771635680045,1.65989069,1964.2,1963.7,0.61656098]
[1771635680941,1.65989069,1964.4,1963.7,0.61656098]
[1771635699162,0.46769399,1964.3,1963.7,0.61656098]
[1771635699461,1.65989069,1964.4,1963.7,0.61656098]
[1771635699662,0.46769401,1964.3,1963.7,0.61656098]
[1771635699862,1.65989069,1964.4,1963.7,0.61656098]
[1771635700055,0.46769397,1964.3,1963.7,0.61656098]
[1771635700257,1.65989069,1964.4,1963.7,0.61656098]
[1771635700455,0.46779939,1964.3,1963.7,0.61656098]
[1771635700759,1.65989069,1964.4,1963.7,0.61656098]
[1771635700962,0.46779817,1964.3,1963.7,0.61656098]
[1771635701165,1.65989069,1964.0,1963.4,0.6116553]
[1771635701360,0.467766,1963.9,1963.4,0.6116553]
[1771635701561,1.65989069,1964.0,1963.4,0.6116553]
[1771635701762,0.46762384,1963.9,1963.4,0.6116553]
[1771635701967,1.65989069,1964.0,1963.4,0.6116553]
[1771635702164,1.65989069,1964.0,1963.4,0.61682572]
[1771635704970,1.65989069,1963.8,1963.2,0.62855602]
[1771635705169,1.65989069,1963.8,1962.8,0.62855602]
[1771635706065,1.65989069,1963.8,1962.8,0.63274382]
[1771635706571,1.65989069,1963.6,1962.8,0.63274382]
[1771635706765,1.65989069,1963.4,1962.8,0.63274382]
[1771635710472,1.66634077,1963.6,1962.8,0.63274382]
[1771635713185,1.65989069,1963.4,1962.8,0.63274382]
[1771635715686,0.00645008,1963.6,1963.0,0.64318799]
[1771635715886,0.00645008,1963.6,1963.2,0.64318799]
[1771635716286,1.65989069,1964.1,1963.2,0.64318799]
[1771635716483,1.65989069,1964.1,1963.1,1.65989069]
[1771635716484,1.65989069,1964.1,1963.4,0.64318799]
[1771635717279,0.00492722,1964.1,1963.6,0.64380144]
[1771635719491,1.65989069,1964.5,1963.6,0.64380144]
[1771635720587,1.66454673,1964.5,1963.6,0.64380144]
[1771635720994,0.00465604,1964.5,1963.8,0.63814845]
[1771635749305,0.46793051,1964.4,1963.8,0.63814845]
[1771635749506,0.00465604,1964.5,1963.8,0.63814845]
[1771635749707,0.12244551,1964.4,1963.8,0.63814845]
[1771635750006,0.00465604,1964.5,1963.8,0.63814845]
[1771635753407,0.05717484,1964.9,1963.8,0.63814845]
[1771635753601,6.0138201,1964.8,1963.8,0.63814845]
[1771635753806,6.0138201,1964.7,1963.8,0.63814845]
[1771635754007,0.05717484,1964.9,1963.8,0.63814845]
[1771635754307,6.01395222,1964.8,1963.8,0.63814845]
[1771635754508,0.06111347,1964.9,1963.8,0.63814845]
[1771635754708,6.01176201,1964.8,1963.8,0.63814845]
[1771635754908,0.06111347,1964.9,1963.8,0.63814845]
[1771635755209,6.01176292,1964.8,1963.8,0.63814845]
[1771635755410,0.06111347,1964.9,1963.8,0.63814845]
[1771635755708,6.01030559,1964.8,1963.8,0.63814845]
[1771635756008,0.06149232,1964.8,1963.8,0.63814845]
[1771635756708,0.08172054,1964.9,1963.8,0.63814845]
[1771635756909,6.00916002,1964.8,1963.8,0.63814845]
[1771635757205,0.08172054,1964.9,1963.8,0.63814845]
[1771635757406,6.00825054,1964.8,1963.8,0.63814845]
[1771635757599,0.08172054,1964.9,1963.8,0.63814845]
[1771635760611,0.08172054,1964.9,1964.1,0.59467066]
[1771635760815,0.00393863,1964.9,1964.1,0.59467066]
[1771635761514,0.00393863,1964.9,1964.4,0.59467066]
[1771635761811,0.00393863,1964.9,1964.4,0.59880159]
[1771635780229,4.23655891,1965.4,1964.4,0.59880159]
[1771635780230,0.12109658,1965.3,1964.4,0.59880159]
[1771635780523,6.46534366,1965.2,1964.4,0.59880159]
[1771635780726,0.12109658,1965.4,1964.5,0.59467066]
[1771635781231,0.12112028,1965.2,1964.5,0.59467066]
[1771635790240,6.12770351,1965.1,1964.5,0.59467066]
[1771635790440,0.11325794,1965.1,1964.5,0.59467066]
[1771635792941,0.11271824,1964.8,1964.3,0.00258587]
[1771635793942,0.11271824,1964.8,1964.3,0.00762406]
[1771635795336,1.65857985,1964.9,1964.3,0.00762406]
[1771635795337,0.57708679,1964.9,1964.3,0.00762406]
[1771635798045,2.23566664,1964.9,1964.3,0.00762406]
[1771635798248,0.57708679,1964.8,1964.3,0.00762406]
[1771635813151,0.57708679,1965.0,1964.3,0.00762406]
[1771635813351,0.57708679,1965.2,1964.3,0.00762406]
[1771635813657,7.0536763,1965.1,1964.3,0.00762406]
[1771635813856,0.57708679,1965.0,1964.3,0.00762406]
[1771635816056,0.57708679,1965.0,1964.5,0.59865024]
[1771635817857,4.83601816,1965.9,1965.2,0.07535324]
[1771635818057,0.59945925,1965.9,1965.2,0.07535324]
[1771635818861,0.60569089,1965.9,1965.2,0.07535324]
[1771635819559,0.60569089,1965.9,1965.4,0.07550429]
[1771635822865,7.74534241,1966.6,1965.7,1.71990882]
[1771635822866,0.59945925,1966.1,1965.7,1.71990882]
[1771635823065,0.59945925,1966.5,1965.7,1.71990882]
[1771635823465,0.59945925,1966.5,1965.5,0.25448]
[1771635823466,0.59945925,1966.3,1965.5,2.4820767]
[1771635823864,0.60482239,1966.3,1965.5,2.48579025]
[1771635824560,0.00536314,1966.3,1965.6,0.56901685]
[1771635824762,0.60482239,1966.3,1965.8,0.56901685]
[1771635831969,0.60482239,1966.3,1965.9,0.56901685]
[1771635833260,0.60482239,1966.3,1965.7,0.56901685]
[1771635833464,0.60482239,1966.3,1965.8,0.56901685]
[1771635834871,0.60482239,1966.3,1965.7,1.65857985]
[1771635835063,0.60482239,1966.3,1965.7,2.2275967]
[1771635835772,0.60482239,1966.3,1965.8,0.56901685]
[1771635841574,0.60482239,1966.3,1965.5,0.8272104]
[1771635841775,0.59945925,1966.1,1965.5,0.00371355]
[1771635847780,0.59490271,1965.9,1965.1,0.85153843]
[1771635849080,0.59490271,1965.9,1965.1,0.8581199]
[1771635849681,0.59490271,1965.9,1965.1,0.26111147]
[1771635850183,0.59490271,1965.9,1965.1,0.8581199]
[1771635850383,0.59490271,1965.9,1965.2,0.59700843]
[1771635850779,0.59490271,1965.9,1965.1,0.00658147]
[1771635850982,0.59490271,1965.7,1965.1,0.00658147]
[1771635853586,0.59490271,1965.7,1965.1,0.6035899]
[1771635864405,0.59490271,1965.7,1965.2,0.59700843]
[1771635865392,0.59490271,1965.7,1965.1,0.6035899]
[1771635865793,0.59490271,1965.7,1965.1,0.00658147]
[1771635867206,0.59490271,1965.7,1965.1,0.6035899]
[1771635872410,0.59490271,1965.7,1964.7,8.58289835]
[1771635872606,0.59490271,1965.5,1964.7,0.59700843]
[1771635873403,0.59490271,1965.5,1964.7,0.60140278]
[1771635877309,0.59490271,1965.5,1964.7,0.00439435]
[1771635878817,0.5925335,1965.3,1964.4,0.59079608]
[1771635879913,0.5925335,1965.3,1964.4,0.59485237]
[1771635885320,0.5925335,1965.3,1964.6,0.59079608]
[1771635886318,0.5925335,1965.7,1964.6,0.59079608]
[1771635890013,0.5925335,1965.7,1964.8,0.59079608]
[1771635898720,0.5925335,1965.5,1964.6,0.59079608]
[1771635906733,5.83353664,1965.4,1964.6,0.59079608]
[1771635907027,0.5925335,1965.3,1964.6,0.59079608]
[1771635915939,0.5925335,1965.3,1964.7,0.58423138]
[1771635917040,0.5925335,1965.3,1964.9,0.58423138]
[1771635919942,0.5925335,1965.3,1964.7,0.58423138]
[1771635927845,0.5925335,1965.3,1964.5,0.58423138]
[1771635928050,0.586227,1965.1,1964.5,0.58423138]
[1771635959860,0.59970973,1965.3,1964.9,0.55980644]
[1771635961861,0.59970973,1965.3,1964.6,2.47247934]
[1771635962162,0.59970973,1965.3,1964.6,0.55980644]
[1771635962660,0.59970973,1965.3,1964.7,0.55980644]
[1771635962861,0.59970973,1965.3,1964.9,0.55980644]
[1771635964264,0.59970973,1965.3,1964.7,0.55980644]
[1771635964563,0.59970973,1965.3,1964.5,0.55980644]
[1771635964862,0.59970973,1965.1,1964.5,0.55980644]
[1771635966863,0.59970973,1965.1,1964.7,0.55980644]
[1771635971159,0.59970973,1965.1,1964.6,0.55543158]
[1771635971961,4.23655891,1965.5,1964.6,0.55543158]
[1771635972160,0.5465037,1965.7,1965.1,1.6580729]
[1771635972362,0.5465037,1965.6,1964.8,0.55543158]
[1771635973866,0.5465037,1965.6,1964.9,2.21350448]
[1771635977374,0.5465037,1965.6,1965.0,0.55543158]
[1771635991280,0.25441,1966.1,1965.0,0.55543158]
[1771635991580,0.5465037,1965.9,1965.0,0.55543158]
[1771635991781,0.5465037,1965.7,1965.0,0.55543158]
[1771635995792,0.5465037,1965.7,1964.8,0.55543158]
[1771635999099,5.83450113,1965.6,1964.8,0.55543158]
[1771635999297,0.55697881,1965.5,1964.8,0.55543158]
[1771636013404,0.55697881,1965.5,1964.5,0.54922461]